Cogmind - Beta 14 @@@ ROGUE MODE // 2024.11.17 @ 11:42:04 Player: Hinzy Result: Destroyed by D-53 Grenadier with Mini Grenade Launcher Performance ------------- Evolutions (0) 0 Regions Visited (2) 400 Robots Destroyed (8) 40 Value Destroyed (111) 111 Prototype IDs (0) 0 Alien Tech Used (0) 0 Bonus (0) 0 TOTAL SCORE: 551 Bonus ------- None Cogmind --------- Core Integrity 0/250 Matter 172/300 Energy 100/100 System Corruption 2% Temperature Cool (22) Movement Treading (160) Location -10/Mines Parts ------- > --- POWER (1) -------- (None) > --- PROPULSION (2) --- Light Treads > --- UTILITY (2) ------ Small Storage Unit > --- WEAPON (2) ------- (None) > --- INVENTORY (8) ---- Ion Engine Aluminum Leg Aluminum Leg Signal Interpreter Mining Laser Peak State ------------ > --- POWER ------------ Ion Engine > --- PROPULSION ------- Aluminum Leg Wheel > --- UTILITY ---------- Small Storage Unit Seismic Detector > --- WEAPON ----------- Medium Laser Light Cannon > --- INVENTORY -------- Ion Engine Light Treads Light Treads Aluminum Leg Mining Laser [Rating: 7] Favorites ----------- Power Ion Engine Engine Ion Engine Propulsion Aluminum Leg Treads Light Treads Leg Aluminum Leg Wheel Wheel Utility Small Storage Unit Device Seismic Detector Storage Small Storage Unit Weapon Medium Laser Energy Gun Medium Laser Ballistic Gun Light Assault Rifle Ballistic Cannon Light Cannon Launcher Grenade Launcher Build | -11 -10 -10 ------- Run | Yrd Mat Min Slots Evolved . | . . . Power . | . . . Propulsion . | . . . Utility . | . . . Weapon . | . . . Parts Attached 7 | 1 2 4 Power . | . . . Engine . | . . . Core . | . . . Reactor . | . . . Propulsion 3 | . 1 2 Treads 2 | . . 2 Leg . | . . . Wheel 1 | . 1 . Hover . | . . . Flight . | . . . Utility 1 | 1 . . Device 1 | 1 . . Storage . | . . . Processor . | . . . Hackware . | . . . Protection . | . . . Artifact . | . . . Weapon 3 | . 1 2 Energy Gun . | . . . Energy Cannon . | . . . Ballistic Gun . | . . . Ballistic Cannon 2 | . 1 1 Launcher 1 | . . 1 Special Weapon . | . . . Impact Weapon . | . . . Slashing Weapon . | . . . Piercing Weapon . | . . . Special Melee Weapon . | . . . Unidentified Prototypes . | . . . Parts Lost 7 | . . 7 Power 1 | . . 1 Propulsion 2 | . . 2 Utility 1 | . . 1 Weapon 3 | . . 3 Highest Loss Streak 7 | . . 7 To Critical Strikes . | . . . Average Slot Usage (%) 93 | . 97 90 Engine 13 | . 14 13 Treads 4 | . . 7 Leg 11 | . 14 10 Wheel 11 | . 14 10 Device 11 | . 14 10 Storage 14 | . 14 14 Energy Gun 13 | . 14 13 Ballistic Cannon 5 | . 11 2 Launcher 5 | . . 10 Peak Build Rating 7 | 6 7 7 Average Rating 6 | 5 6 6 On Entrance 6 | 6 6 7 Naked Turns . | . . . Heaviest Build 16 | 13 16 16 Greatest Support 40 | 20 10 40 Greatest Overweight (x) 1 | . 1 1 Average Overweight (x) . | . 1 . Largest Inventory Capacity 8 | 8 8 8 Average Capacity 8 | 8 8 8 Most Carried 7 | 6 7 7 Average Carried 5 | 5 5 6 Final Capacity 8 | 8 8 8 Final Carried 7 | 5 7 5 Class Distribution -------------------- 100% | Mutant Dominant Class ---------------- Mutant | -10/Materials Mutant | -10/Mines Resources | -11 -10 -10 ----------- Run | Yrd Mat Min Matter Collected 209 | 200 . 9 Remotely . | . . . Salvage Created 95 | 48 . 47 Parts 15 | 8 . 7 Haulers Intercepted . | . . . Recyclers Shooed . | . . . Parts Field Recycled . | . . . Retrieved Matter . | . . . Parts Self-Destructed . | . . . Prevented . | . . . Kills | -11 -10 -10 ------- Run | Yrd Mat Min Combat Hostiles Destroyed 13 | . . 13 Guns 2 | . . 2 Cannons 1 | . . 1 AOE 10 | . . 10 Classes Destroyed 4 | 1 . 3 Tunneler 4 | 3 . 1 Swarmer 3 | . . 3 Demolisher 1 | . . 1 Assembled 9 | . . 9 Best Kill Streak 10 | 3 . 10 Combat Bots Only 9 | . . 9 Max Kills in Single Turn 4 | 1 . 4 Gunslinging . | . . . Exploded 3 | . . 3 Melee . | . . . Uniques/NPCs Destroyed . | . . . Combat | -11 -10 -10 -------- Run | Yrd Mat Min Hostile Shots Fired 34 | . . 34 Missed 6 | . . 6 Damage Taken 905 | . . 905 Core 257 | . . 257 Absorbed by Shields . | . . . Core Remaining (%) 100 | 100 . . Volleys Fired 23 | 8 . 15 Largest 2 | 1 . 2 Hottest 85 | 50 . 85 Shots Fired 25 | 8 . 17 Gun 13 | 8 . 5 Cannon 3 | . . 3 Launcher 9 | . . 9 Special . | . . . Kinetic 3 | . . 3 Thermal 13 | 8 . 5 Explosive 9 | . . 9 Electromagnetic . | . . . Robot Hit Streak 5 | 4 . 5 Robot Miss Streak 1 | 1 . 1 Penetration Max . | . . . Secondary Targets . | . . . Shots Hit Robots 16 | 7 . 9 Core Hits 33 | 3 . 30 Critical Kills . | . . . Critical Parts Destroyed . | . . . Critical Strikes 1 | . . 1 Burn 1 | . . 1 Melee Attacks . | . . . Impact . | . . . Slashing . | . . . Piercing . | . . . Sneak Attacks . | . . . Combat Hostiles . | . . . Follow-up Attacks . | . . . Damage Inflicted 877 | 87 . 790 Guns 138 | 87 . 51 Cannons 37 | . . 37 Explosions 702 | . . 702 Melee . | . . . Ramming . | . . . Kinetic 37 | . . 37 Thermal 138 | 87 . 51 Explosive 702 | . . 702 Electromagnetic . | . . . Impact . | . . . Slashing . | . . . Piercing . | . . . Highest Corruption 2 | . . 2 Average Corruption 2 | . . 2 Corruption Purged . | . . . Corruption Blocked . | . . . Overload Shots . | . . . Overflow Damage 40 | . . 40 Projectiles . | . . . Explosions 40 | . . 40 Melee . | . . . Knockbacks . | . . . Impact . | . . . Kinetic . | . . . Secondary . | . . . Self-Inflicted Damage 93 | . . 93 Shots 3 | . . 3 Rammed . | . . . Targets Rammed . | . . . Kicked . | . . . Crushed . | . . . Highest Temperature 38 | 30 . 38 Average Temperature 14 | 11 . 17 Received Heat Transfer 40 | . . 40 Siege Activations . | . . . Robots Corrupted . | . . . Combat Hostiles . | . . . Parts Fried . | . . . Impact Corruptions . | . . . Robots Melted . | . . . Combat Hostiles . | . . . Parts Melted 1 | 1 . . Heat Transferred 481 | 259 . 222 Parts Sabotaged . | . . . Parts Stolen . | . . . Parts Stripped . | . . . Power Chain Reactions . | . . . Alert | -11 -10 -10 ------- Run | Yrd Mat Min Peak Influence 118 | 15 9 118 Initial 9 | . 9 3 Average 25 | 5 9 55 Maximum Alert Level . | . . . Low Security (%) 100 | 100 100 100 Level 1 . | . . . Level 2 . | . . . Level 3 . | . . . Level 4 . | . . . Level 5 . | . . . High Security . | . . . Max Security . | . . . Squads Dispatched . | . . . Investigation . | . . . Extermination . | . . . Reinforcement . | . . . Assault . | . . . Garrison . | . . . Intercept . | . . . Searches Triggered . | . . . Construction Impeded . | . . . Haulers Reinforced . | . . . Active Scanning Responses . | . . . Cargo Convoy Interrupts . | . . . Stealth | -11 -10 -10 --------- Run | Yrd Mat Min Distress Signals . | . . . Communications Jammed . | . . . Distress Signals . | . . . Times Spotted 20 | . . 20 Peak Tracking Total 20 | . . 20 Tactical Retreats 1 | . . 1 Traps | -11 -10 -10 ------- Run | Yrd Mat Min Traps Triggered . | . . . Indirectly . | . . . Trap Hack Attempts . | . . . Triggered . | . . . Disarmed . | . . . Reprogrammed . | . . . Reused . | . . . Traps Extracted . | . . . Installed . | . . . Triggered . | . . . Machines | -11 -10 -10 ---------- Run | Yrd Mat Min Machines Disabled . | . . . Max in Single Turn . | . . . Machines Repaired . | . . . Machines Dismantled . | . . . Machines Sabotaged . | . . . Overloaded Fab Kills . | . . . Hacking | -11 -10 -10 --------- Run | Yrd Mat Min Machines Accessed 1 | . 1 . Terminals 1 | . 1 . Fabricators . | . . . Repair Stations . | . . . Recycling Units . | . . . Scanalyzers . | . . . Garrison Access . | . . . Total Hacks 2 | . 2 . Successful 1 | . 1 . Failed 1 | . 1 . Catastrophic . | . . . Database Lockouts . | . . . Manual . | . . . Terminals 2 | . 2 . Fabricators . | . . . Repair Stations . | . . . Recycling Units . | . . . Scanalyzers . | . . . Garrison Access . | . . . Terminal Hacks 1 | . 1 . Record 1 | . 1 . Fabricator Hacks . | . . . Repair Station Hacks . | . . . Recycling Unit Hacks . | . . . Scanalyzer . | . . . Garrison Access Hacks . | . . . Unauthorized Hacks . | . . . Terminals . | . . . Fabricators . | . . . Repair Stations . | . . . Recycling Units . | . . . Scanalyzers . | . . . Garrison Access . | . . . Data Cores Recovered . | . . . Used . | . . . Hacking Detections 1 | . 1 . Full Trace Events . | . . . Feedback Events . | . . . Feedback Blocked . | . . . Robot Schematics Acquired . | . . . Robots Built . | . . . Authchips . | . . . Time . | . . . Total Robot Build Rating . | . . . Part Schematics Acquired . | . . . Parts Built . | . . . Authchips . | . . . Time . | . . . Total Part Build Rating . | . . . Parts Repaired . | . . . Time . | . . . Parts Recycled . | . . . Recycled Matter . | . . . Retrieved Matter . | . . . Retrieved Components . | . . . Parts Scanalyzed . | . . . Part Schematics Acquired . | . . . Parts Damaged . | . . . Bothacking | -11 -10 -10 ------------ Run | Yrd Mat Min Used RIF Installer . | . . . Robots Hacked . | . . . Non-combat . | . . . Combat . | . . . Robot Hacks Applied . | . . . Relay Couplers Released . | . . . Fabnet Peak Effective % . | . . . Robots Rewired . | . . . Allies Hacked . | . . . Hacks Repelled . | . . . Allies | -11 -10 -10 -------- Run | Yrd Mat Min Total Allies . | . . . Largest Group . | . . . Highest-Rated Group . | . . . Highest-Rated Ally . | . . . Total Orders . | . . . Ally Attacks . | . . . Total Damage . | . . . Kills . | . . . Allies Corrupted . | . . . Allies Melted . | . . . Intel | -11 -10 -10 ------- Run | Yrd Mat Min Robot Analysis Total . | . . . Derelict Logs Recovered . | . . . Drone Launches . | . . . Drone Recoveries . | . . . Exploration | -11 -10 -10 ------------- Run | Yrd Mat Min Turns Passed 360 | 120 103 137 Spaces Moved 191 | 34 104 53 Core . | . . . Treads 5 | . . 5 Legs 34 | 34 . . Wheels 152 | . 104 48 Hover . | . . . Flight . | . . . Fastest Speed 95 | 120 95 95 Average Speed 101 | 120 95 101 Slowest Speed 160 | 120 95 160 Overloaded Moves . | . . . Propulsion Burnouts . | . . . Robots Hopped . | . . . Cave-ins Triggered . | . . . Exploration Rate (%) 12 | 3 19 15 Regions Visited 2 Branch Regions 1 Pre-discovered Areas . | . . . Known Exits Taken . | . . . Unknown Exits Taken 2 | 1 1 . Scrap Searched . | . . . Spaces Dug . | . . . Terrain Destroyed 71 | . . 71 Melee . | . . . Projectile 1 | . . 1 AOE 70 | . . 70 Terrain Rammed . | . . . Walls Destroyed . | . . . Machines Disabled . | . . . Actions | -11 -10 -10 --------- Run | Yrd Mat Min Total 331 | 106 107 118 Wait 106 | 60 . 46 Move 189 | 33 103 53 Hop . | . . . Pick Up 3 | 1 2 . Fast Attach 2 | 1 1 . Attach 2 | . . 2 Detach . | . . . Swap 3 | . 1 2 Drop 3 | 3 . . Fire 23 | 8 . 15 Melee . | . . . Ram . | . . . Kick . | . . . Crush . | . . . Escape Stasis . | . . . Rewire . | . . . Trap . | . . . Miscellaneous . | . . . Route ------- -11/Scrapyard -10/Materials -10/Mines History --------- Turn | Location | Event 1 | -11/Scrapyard | Discovered new exit (range 2) 121 | -11/Scrapyard | Entered Materials 181 | -10/Materials | Discovered new exit (range 8) 224 | -10/Materials | Entered Mines 302 | -10/Mines | Build established: Mutant 313 | -10/Mines | Assembled infested the area 354 | -10/Mines | Core integrity fell below 50% 358 | -10/Mines | Destroyed 9 combat bots 358 | -10/Mines | Core integrity fell below 20% 361 | -10/Mines | Destroyed by D-53 Grenadier with Mini Grenade Launcher Last Messages --------------- 00334_ as-62042 sneak attacks. 00334_ R-06 Scavenger destroyed. 00335_ as-98678 destroyed. 00337_ as-62042 destroyed. 00349_ R-06 Scavenger destroyed. 00350_ Acquired 8 matter. 00351_ The unstable cave ceiling collapses. 00353_ D-53 Grenadier suffers critical hit (Burn). 00354_ The unstable cave ceiling collapses. 00355_ Lgt. Treads destroyed. 00355_ R-06 Scavenger collects Terrain Scan Processor. 00357_ The unstable cave ceiling collapses. 00357_ Ion Engine destroyed. 00357_ Med. Laser destroyed. 00358_ R-06 Scavenger collects Structural Scanner. 00359_ D-53 Grenadier destroyed. 00361_ Lgt. Cannon destroyed. Map ----- +----------------------------------------------------+ | ????????????????????????????????????? | | ????????????????????????????????????? | | ????????????????????????????????????? | | ????????????????????????????????????? | | ????????????????????????????????????? | | ????????????????????????????????????? | | ????????????????????????????????????? | | ????????????????????????????????????? | | ????????????????????????????????????? | | ?????????????????????????? ??????? | | ????????????????????????# ?????? | | ???????????????????????# ?????? | | ??????????????????????## #????? | | ??????????????????????# # ????? | | ??????????????????????# # # #????? | | ??????????????????????# ##???? | | ????????????????????### # ????? | | ????????????????????##!| #????? | | ?????????????????????r|= # #????? | | ?????????????????????# % #????? | | ?????????????????????? # # #?????? | | ????????????????????### d #?????? | | ????????????????????# %##?????? | | ?????????????????# ## #?????? | | ?????????????????# ##????? | | ???????????????????# @ #????? | | ???????????????????# ##????? | | ???????????????????# ##????? | | ???????????????????# ##???? | | ???????????????????# #???? | | ???????????????????### ##??? | | ????????????????????## ##?? | | ????????????????##### #?? | | ?????????????#### #?? | | ?????????????# #?? | | ?????????????# ## ## #?? | | ?????????????# ## ###### ##?? | | ???????????### ## #?## # # ###??? | | ??????????## #### ##### ####????? | | ??????????# ### t ????????? | | ??????????# t#????????? | | ??????????## #### #????????? | | ???????????## #??###????????? | | ????????????## ## ##?????????????? | | ?????????????#########??????????????? | | ????????????????????????????????????? | | ????????????????????????????????????? | | ????????????????????????????????????? | | | | | +----------------------------------------------------+ Best States ------------- Heat Dissipation 25 Energy Generation 10 Energy Capacity 250 Matter Stores 300 Matter Capacity 300 Sight Range 16 Terrain Scan Density 10 Evasion (%) 55 Recoil Reduction 2 Item Schematics ----------------- None Robot Schematics ------------------ None Fabricated ------------ Nothing Alien Tech Used ----------------- None Achievements -------------- None Challenges ------------ None Game ------ Seed SlugTransportMantle Manual? 0 Play Time 00:04:55 Cumulative 68.8 hours Start 2024.11.17 @ 11:38:48 End 2024.11.17 @ 11:42:04 Sessions 1 Manual Loads 0 Difficulty Rogue Special Mode None Game No. 46 Rogue 46 Adventurer 0 Explorer 0 Win Type - Total 0 Types 0/0/0/0/0/0/0/0/0 Lore% 41 Gallery% 43 Achievement% 33 Wizard Run 0 Options --------- Layout 2 ASCII 0 Keyboard 0 Movement Mouse Keybinds 0 Fullscreen 1 Font 24/Smallcaps Map View 50x44 Zoom Use 0% Tactical HUD 1 Map Filters NONE Filters NONE Steam 1 RUN: c8a86ed3-90c4-4672-94ce-d5699e5e1e65